bitfinex/quotes_ETHUSD_20251218
["timestamp","ask_amount","ask_price","bid_price","bid_amount"]
[1766080608129,5.2345,2842.3,2841.3,1.30324307]
[1766080608308,5.2345,2842.3,2841.4,4.38800172]
[1766080608509,5.2345,2842.3,2841.5,0.3399]
[1766080609104,0.001,2842.5,2841.6,0.3399]
[1766080609309,0.001,2842.5,2841.6,3.85898174]
[1766080609522,5.2355,2842.5,2841.6,4.78785763]
[1766080609722,5.2355,2842.5,2841.7,0.80428023]
[1766080610032,5.2355,2842.5,2841.7,0.3399]
[1766080611418,5.2355,2842.5,2841.1,0.3399]
[1766080611419,5.2345,2842.4,2841.1,0.3399]
[1766080611624,5.2345,2842.4,2841.3,3.51945789]
[1766080611848,0.405504,2842.2,2841.2,0.80428023]
[1766080612054,5.2345,2842.1,2841.2,4.32386855]
[1766080612565,5.2345,2842.1,2841.2,0.3399]
[1766080613064,5.2345,2842.1,2841.0,0.46438023]
[1766080613233,5.2345,2842.1,2841.1,0.3399]
[1766080613431,5.2345,2841.9,2841.2,3.51962537]
[1766080613836,5.2345,2841.9,2841.1,0.3399]
[1766080614074,5.2345,2841.9,2841.1,3.85965691]
[1766080615130,5.2345,2841.9,2840.5,5.3114]
[1766080615362,5.2345,2841.9,2840.8,0.46438023]
[1766080615533,5.69836214,2841.9,2840.9,0.3399]
[1766080616232,5.2345,2841.8,2840.9,0.3399]
[1766080616445,5.2345,2841.8,2841.0,0.3399]
[1766080617480,5.2345,2841.8,2840.8,3.9845028]
[1766080617676,5.2345,2841.8,2841.0,3.51988391]
[1766080617845,5.2345,2841.8,2841.0,3.85978391]
[1766080618045,5.2345,2841.6,2840.5,0.3419]
[1766080618360,5.2345,2841.4,2840.5,0.002]
[1766080618555,0.405504,2841.6,2840.5,0.002]
[1766080618872,5.640004,2841.6,2840.5,0.002]
[1766080619078,5.2345,2841.3,2840.5,0.002]
[1766080619381,5.2345,2841.3,2840.2,3.52087573]
[1766080619579,5.2345,2841.1,2840.1,0.46438023]
[1766080620385,0.405504,2841.0,2839.3,3.5219135]
[1766080620557,5.2345,2840.9,2839.9,3.86112025]
[1766080620880,5.2345,2840.9,2840.0,0.80558023]
[1766080621440,5.0634,2840.8,2839.8,0.002]
[1766080621866,5.0634,2840.8,2839.8,0.3432]
[1766080622137,5.0634,2840.6,2839.4,0.002]
[1766080622346,5.0634,2840.2,2838.8,0.002]
[1766080622577,5.0634,2839.9,2838.8,0.002]
[1766080622894,5.0634,2839.8,2838.8,0.002]
[1766080623056,5.0634,2839.6,2838.8,0.002]
[1766080623372,5.0634,2839.6,2838.7,0.002]
[1766080623542,5.0634,2839.4,2838.7,0.002]
[1766080624275,5.0634,2840.3,2838.9,4.8036]
[1766080624483,5.93328423,2840.2,2838.7,0.002]
[1766080624874,6.01483873,2840.2,2838.7,0.002]
[1766080625277,5.93328423,2840.2,2838.7,0.002]
[1766080625463,7.91213775,2840.0,2838.7,0.002]
[1766080625668,5.0634,2839.5,2838.7,0.002]
[1766080625864,5.0634,2839.5,2838.4,0.3412]
[1766080626090,0.405504,2839.6,2838.3,0.002]
[1766080626290,0.405504,2839.6,2837.8,3.86497522]
[1766080626291,5.468904,2839.7,2838.1,3.52346794]
[1766080626585,0.405504,2839.2,2838.2,3.52329309]
[1766080626888,5.468904,2839.7,2838.0,0.3412]
[1766080627093,5.0634,2839.4,2837.9,0.002]
[1766080627290,0.405504,2839.6,2837.9,0.3432]
[1766080627594,0.405504,2839.2,2837.9,3.86687104]
[1766080627791,5.0634,2838.9,2838.0,0.3412]
[1766080627978,5.65672842,2839.1,2838.2,0.3412]
[1766080628588,5.468904,2839.0,2837.9,7.04940337]
[1766080628796,5.468904,2839.0,2837.9,7.39060337]
[1766080629009,5.0634,2839.0,2838.0,0.3412]
[1766080629297,5.93328423,2839.8,2838.4,0.3412]
[1766080629533,5.52778023,2839.8,2838.5,0.03522987]
[1766080629662,5.0634,2839.8,2838.6,0.3412]
[1766080629865,5.0634,2839.6,2838.6,0.3412]
[1766080630602,0.405504,2839.6,2837.9,0.3432]
[1766080630792,5.468904,2839.6,2838.0,0.3412]
[1766080631099,5.468904,2839.3,2837.9,0.002]
[1766080631401,5.0634,2839.0,2837.9,0.46638023]
[1766080631604,0.405504,2839.1,2837.9,0.46638023]
[1766080631605,5.0634,2838.8,2837.9,0.002]
[1766080632093,5.0634,2838.8,2837.9,0.3432]
[1766080632272,5.0634,2838.8,2837.9,3.86686107]
[1766080632471,5.0634,2838.8,2837.9,0.3432]
[1766080633300,0.52152254,2838.9,2838.1,0.3447]
[1766080633464,5.0756,2839.0,2838.1,0.3447]
[1766080634967,0.46438023,2839.6,2838.3,7.04647146]
[1766080635187,0.46438023,2839.4,2838.4,0.3447]
[1766080635389,5.53998023,2839.4,2838.4,0.3447]
[1766080635599,5.0756,2839.4,2838.5,0.37992987]
[1766080635888,5.0756,2839.6,2838.7,0.3447]
[1766080636100,5.6237104,2839.6,2838.7,0.3447]
[1766080636666,3.60249325,2840.2,2838.9,0.3447]
[1766080636667,5.0756,2840.1,2838.9,0.3447]
[1766080636897,5.0756,2840.1,2839.0,0.3447]
[1766080637205,5.53998023,2840.0,2839.1,3.86694296]
[1766080637416,5.53998023,2840.0,2839.2,0.3447]
[1766080637717,5.0766,2840.2,2839.3,5.0307]
[1766080638003,3.52193393,2840.2,2839.0,3.98670736]
[1766080638210,5.0756,2840.1,2839.0,3.98670736]
[1766080638500,5.0756,2840.1,2839.2,5.0307]
[1766080638701,5.0756,2840.1,2839.2,0.3447]
[1766080639198,0.576,2840.0,2839.2,3.86671913]
[1766080639398,5.0756,2840.1,2839.2,7.04413803]
[1766080639604,0.576,2840.0,2839.3,0.3447]
[1766080639809,0.576,2840.0,2839.4,0.38667191]
[1766080640182,0.576,2840.0,2839.4,0.73137191]
[1766080640382,0.576,2839.9,2839.4,0.73137191]
[1766080641084,0.576,2839.9,2839.2,3.52211407]
[1766080641284,0.576,2839.9,2839.2,3.86681407]
[1766080641493,0.576,2839.9,2837.8,0.0815545]
[1766080641685,0.405504,2839.6,2838.2,3.86801147]
[1766080642014,5.0756,2839.3,2838.1,0.3447]
[1766080642182,0.576,2839.2,2838.6,0.3447]
[1766080642384,5.0756,2839.1,2838.4,3.52305828]
[1766080642582,5.0756,2839.1,2838.5,3.52297631]
[1766080642782,5.0756,2839.1,2838.5,3.86758778]
[1766080642984,0.576,2839.0,2838.6,3.52276237]
[1766080643312,0.576,2839.1,2838.7,0.3447]
[1766080644290,0.576,2839.1,2838.8,0.3447]
[1766080644611,0.576,2839.2,2838.8,0.3447]
[1766080644907,0.576,2839.6,2839.1,0.3447]
[1766080645113,5.0756,2840.1,2838.6,11.14456618]
[1766080645299,1.04038023,2840.0,2839.1,0.3447]
[1766080645813,1.04038023,2840.0,2839.2,0.3447]
[1766080646109,1.04038023,2840.0,2839.3,0.3447]
[1766080646110,0.576,2840.0,2839.3,0.3447]
[1766080647097,5.0756,2839.8,2838.8,0.46438023]
[1766080647291,0.405504,2839.9,2839.0,0.3447]
[1766080647610,0.576,2839.8,2839.1,0.3447]
[1766080648485,0.001,2840.2,2839.1,0.3447]
[1766080648486,0.001,2840.2,2839.4,4.686]
[1766080648805,0.001,2840.2,2839.7,0.3447]
[1766080649309,0.001,2840.2,2839.4,0.46438023]
[1766080649515,5.0766,2840.2,2839.4,0.46438023]
[1766080649717,5.0766,2840.2,2839.5,4.07115315]
[1766080649885,0.576,2840.3,2839.9,0.3447]
[1766080650087,0.576,2840.5,2839.9,0.3447]
[1766080650316,0.576,2840.7,2840.1,0.3447]
[1766080650525,0.576,2840.7,2840.1,4.686]
[1766080650818,0.576,2840.9,2840.2,0.3447]
[1766080651487,5.0756,2840.8,2839.9,0.9207]
[1766080651687,5.0756,2840.8,2840.0,0.3447]
[1766080652825,5.6516,2840.8,2840.2,0.3447]
[1766080653117,5.6516,2840.8,2839.8,0.46438023]
[1766080653285,5.6516,2840.8,2839.9,3.86594958]
[1766080653609,0.576,2840.8,2840.1,0.3447]
[1766080654187,0.576,2840.8,2840.3,0.3447]
[1766080654520,0.576,2840.8,2840.0,0.3447]
[1766080654812,4.6615086,2840.8,2840.0,0.3447]
[1766080655111,5.0756,2840.5,2839.1,0.3447]
[1766080655419,11.7020058,2840.8,2839.3,4.686]
[1766080655420,5.0756,2840.2,2839.3,4.686]
[1766080655601,5.0756,2840.2,2839.5,0.3447]
[1766080655907,0.576,2840.1,2839.5,0.3447]
[1766080656517,0.576,2840.2,2839.5,0.3447]
[1766080657213,0.576,2840.2,2839.6,0.3447]
[1766080657415,0.576,2840.2,2839.6,3.86628955]
[1766080657603,0.576,2840.2,2839.7,0.3447]
[1766080658411,0.576,2840.2,2839.4,4.09785047]
[1766080658412,5.6516,2840.2,2839.4,1.04038023]
[1766080658592,0.576,2840.2,2839.6,0.3447]
[1766080658799,5.0756,2840.4,2839.6,0.3447]
[1766080658999,5.53820254,2840.4,2839.6,0.3447]
[1766080659385,5.53820254,2840.4,2839.7,0.3447]
[1766080659713,5.53820254,2840.4,2839.6,0.3447]
[1766080660318,5.53820254,2840.4,2839.6,5.0307]
[1766080660520,5.0756,2840.4,2839.7,0.3447]
[1766080661116,0.576,2840.5,2839.7,0.3447]
[1766080661285,0.001,2840.2,2839.7,0.3447]
[1766080661485,0.001,2840.2,2839.6,4.686]
[1766080661486,0.001,2840.2,2839.2,4.686]
[1766080661796,5.0766,2840.2,2839.3,0.80908023]
[1766080662120,5.0766,2840.2,2839.3,1.35858825]
[1766080662292,5.0766,2840.2,2839.4,0.3447]
[1766080662492,0.576,2840.1,2839.4,0.3447]
[1766080662722,0.576,2840.1,2839.4,3.86656397]
[1766080663020,0.576,2840.1,2839.4,0.3447]
[1766080663193,4.4683,2840.0,2839.2,0.46438023]
[1766080663522,0.001,2840.2,2839.4,4.5189]
[1766080663714,0.001,2840.2,2839.5,0.3564]
[1766080663917,4.4693,2840.2,2839.5,0.3564]
[1766080664117,4.4693,2840.2,2839.3,0.576]
[1766080664317,4.4693,2840.2,2839.4,0.3564]
[1766080664518,0.405504,2840.1,2839.4,0.3564]
[1766080664895,4.4693,2840.2,2839.4,0.3564]
[1766080665201,5.0453,2840.2,2839.4,0.3564]
[1766080665401,5.0453,2840.2,2839.5,0.3564]
[1766080665898,0.001,2840.2,2839.6,4.5189]
[1766080666103,0.001,2840.2,2839.7,0.3564]
[1766080667506,4.4693,2840.2,2839.5,3.87803537]
[1766080667688,0.001,2840.2,2839.9,0.3564]
[1766080667893,4.4683,2840.8,2840.0,0.3564]
[1766080668198,5.0433,2840.8,2840.1,0.3564]
[1766080668396,4.4683,2840.7,2839.7,3.52142213]
[1766080668809,4.09514972,2840.8,2839.4,5.0949]
[1766080668810,4.4683,2840.5,2839.5,0.46438023]
[1766080668992,4.4683,2840.3,2839.5,3.5216781]
[1766080669187,4.4683,2840.1,2839.4,3.98617687]
[1766080669397,4.4683,2840.1,2839.5,3.52372546]
[1766080669615,4.4683,2840.1,2839.5,0.002]
[1766080669833,4.4683,2840.1,2839.5,0.3584]
[1766080670119,0.575,2840.2,2839.5,0.3584]
[1766080670421,4.4683,2840.4,2839.7,0.3564]
[1766080670613,5.0433,2840.4,2839.5,0.002]
[1766080670793,5.0433,2840.4,2839.5,0.3584]
[1766080671310,5.0433,2840.4,2839.5,4.5209]
[1766080671498,5.0433,2840.4,2839.7,0.3564]
[1766080671701,4.4683,2840.7,2839.8,0.03521374]
[1766080672001,5.0433,2840.6,2839.8,0.3564]
[1766080673315,0.575,2840.6,2839.8,0.3564]
[1766080673499,0.001,2840.8,2840.1,3.52100278]
[1766080673704,0.001,2840.8,2840.3,0.3564]
[1766080675322,4.4683,2840.7,2839.8,4.56071128]
[1766080675520,4.4683,2840.7,2839.8,1.39578023]
[1766080675692,3.52038301,2840.6,2839.8,0.9314]
[1766080676023,5.0433,2840.5,2839.5,0.002]
[1766080676193,4.4683,2840.3,2839.5,0.002]
[1766080677099,4.4683,2840.3,2839.5,0.3584]
[1766080677725,4.4683,2840.3,2839.8,0.002]
[1766080678228,4.4683,2840.2,2839.8,0.002]
[1766080678394,3.59047971,2840.6,2839.8,0.002]
[1766080678591,3.59047971,2840.6,2839.8,0.3584]
[1766080678592,5.0433,2840.5,2839.8,0.3584]
[1766080678797,4.4683,2840.5,2839.8,0.3584]
[1766080678998,0.575,2840.4,2839.8,0.3584]
[1766080679503,0.07,2840.6,2839.9,0.3564]
[1766080679822,0.07,2840.6,2840.0,0.3564]
[1766080679823,0.645,2840.6,2840.0,0.3564]
[1766080680624,4.4683,2840.5,2839.8,0.002]
[1766080681008,4.4683,2840.5,2839.8,0.3602]
[1766080681209,4.5383,2840.5,2839.8,0.002]
[1766080681618,0.07,2840.5,2839.9,0.3582]
[1766080681924,0.575,2840.4,2839.9,0.3582]
[1766080683051,0.07,2840.5,2840.2,0.3582]
[1766080683351,4.4061,2840.4,2839.9,0.38815488]
[1766080683512,4.4061,2840.4,2839.8,0.002]
[1766080683924,4.9811,2840.4,2839.8,0.002]
[1766080684735,4.9811,2840.4,2839.0,3.52230408]
[1766080684736,4.4061,2840.0,2839.0,3.52230408]
[1766080684924,0.475504,2840.3,2838.9,3.88069046]
[1766080684925,4.4061,2839.8,2838.9,3.88069046]
[1766080685134,4.91121,2839.7,2838.3,0.002]
[1766080685436,4.4061,2839.5,2838.5,3.88108025]
[1766080685649,4.4061,2839.5,2838.5,0.3582]
[1766080685798,4.4061,2839.3,2838.5,0.3582]
[1766080685998,4.4761,2839.3,2838.5,0.3582]
[1766080686226,4.4761,2839.3,2838.3,3.98955078]
[1766080686416,4.4061,2839.1,2838.3,0.002]
[1766080686719,4.92885254,2839.1,2838.3,3.52517638]
[1766080687048,4.92885254,2839.1,2838.3,0.46638023]
[1766080687401,4.92885254,2839.1,2838.3,0.82458023]
[1766080687602,4.92885254,2839.1,2838.4,3.52305034]
[1766080687811,4.92885254,2839.1,2838.3,0.82458023]
[1766080688006,4.92885254,2839.1,2838.3,4.34773476]
[1766080688212,4.4061,2839.1,2838.3,4.34773476]
[1766080688633,4.4061,2839.1,2838.3,4.34778671]
[1766080688929,4.4061,2839.1,2838.5,0.3582]
[1766080689118,0.405504,2838.8,2837.9,0.002]
[1766080689301,5.0511,2838.7,2837.9,0.002]
[1766080689907,5.0511,2838.7,2837.9,0.3602]
[1766080690117,5.0511,2838.7,2837.9,0.002]
[1766080690118,0.9511644,2838.6,2837.9,0.002]
[1766080690317,4.4061,2838.5,2837.9,0.002]
[1766080690517,0.07,2838.7,2838.1,0.3582]
[1766080691031,4.4761,2838.7,2837.9,3.52570206]
[1766080691204,0.07,2838.7,2838.1,0.3582]
[1766080691404,0.46438023,2839.6,2838.1,0.3582]
[1766080691405,4.4061,2839.5,2838.4,0.3582]
[1766080691621,4.4061,2839.3,2838.0,5.09058023]
[1766080691811,4.4061,2839.1,2838.2,0.46438023]
[1766080691997,4.4061,2838.9,2837.9,0.002]
[1766080692204,0.575,2839.0,2837.9,0.002]
[1766080692205,0.405504,2838.6,2837.9,0.002]
[1766080692402,0.575,2839.0,2837.9,4.7594]
[1766080692631,0.405504,2838.9,2838.1,0.3645]
[1766080692837,4.7892,2839.7,2838.6,5.1239]
[1766080693006,5.32562,2839.6,2838.8,0.3645]
[1766080693333,5.32562,2839.6,2837.8,0.0815545]
[1766080693334,5.32562,2839.6,2837.7,0.46438023]
[1766080693534,5.194704,2839.5,2838.0,0.3645]
[1766080693722,0.575,2839.4,2837.9,0.002]
[1766080693926,0.405504,2839.1,2838.0,0.46438023]
[1766080694232,5.194704,2838.9,2837.9,0.002]
[1766080694446,5.194704,2838.9,2838.1,3.5234694]
[1766080694600,4.7892,2838.9,2838.2,0.3645]
[1766080696234,0.575,2839.0,2838.2,3.88775926]
[1766080696535,5.3642,2839.0,2838.3,0.3645]
[1766080697037,4.7892,2838.8,2837.9,0.3665]
[1766080697335,4.7892,2838.8,2838.2,0.3645]
[1766080697636,4.7892,2839.1,2838.3,0.3645]
[1766080698133,3.52225153,2839.1,2838.0,4.09858566]
[1766080698436,4.7892,2839.0,2838.1,0.3645]
[1766080699648,4.7892,2839.1,2838.3,0.3645]
[1766080699813,0.575,2839.2,2838.4,4.7594]
[1766080700015,5.3642,2839.6,2838.6,0.3645]
[1766080700228,5.3642,2839.6,2838.7,0.3645]
[1766080700427,0.575,2839.6,2838.8,5.1239]
[1766080700639,0.575,2839.6,2838.9,0.3645]
[1766080700939,5.3642,2839.6,2838.9,0.3645]
[1766080701144,4.7892,2840.1,2839.1,0.3645]
[1766080701460,4.7892,2840.1,2839.3,0.3645]
[1766080701615,0.576,2840.2,2839.3,0.3645]
[1766080701616,0.576,2840.2,2839.4,0.3645]
[1766080701944,0.576,2840.2,2839.5,0.3645]
[1766080702112,0.001,2840.2,2839.6,4.7594]
[1766080702313,0.001,2840.2,2839.3,0.46438023]
[1766080702513,4.7902,2840.2,2839.4,3.88635936]
[1766080702714,4.7902,2840.2,2839.5,3.5217251]
[1766080703316,4.7902,2840.2,2839.4,3.88629508]
[1766080703559,4.7902,2840.2,2839.4,0.3645]
[1766080703720,4.7902,2840.2,2839.4,3.88630208]
[1766080704049,4.7902,2840.2,2839.6,0.3645]
[1766080704249,0.001,2840.2,2839.6,0.3645]
[1766080705844,4.7902,2840.2,2839.4,0.46438023]
[1766080706065,4.7902,2840.2,2838.7,4.7594]
[1766080706066,4.7892,2840.0,2838.7,4.7594]
[1766080706219,4.7892,2840.0,2838.5,0.51239]
[1766080706220,4.7892,2839.8,2838.5,0.51239]
[1766080706423,4.7892,2839.8,2838.9,0.3645]
[1766080706424,0.574,2839.7,2838.9,0.3645]
[1766080706630,0.574,2839.7,2839.1,0.3645]
[1766080706843,0.574,2839.9,2839.1,0.3645]
[1766080707147,0.574,2839.9,2839.2,0.3645]
[1766080707861,0.574,2839.9,2839.1,0.3645]
[1766080707862,4.7892,2839.8,2839.1,0.3645]
[1766080708349,4.7892,2839.6,2838.8,3.98696869]
[1766080708549,4.7892,2839.6,2838.0,0.002]
[1766080708550,5.194704,2839.6,2838.3,0.3645]
[1766080708721,4.7892,2839.4,2838.5,0.3645]
[1766080708922,5.3632,2839.3,2838.5,0.3645]
[1766080709639,0.574,2839.3,2838.2,4.09726552]
[1766080709841,0.574,2839.6,2838.7,0.3645]
[1766080710154,0.574,2839.6,2838.9,0.3645]
[1766080710545,0.574,2839.6,2838.9,3.52246853]
[1766080710770,0.574,2839.6,2839.0,0.3645]
[1766080711351,4.7892,2839.5,2838.7,0.3645]
[1766080711655,0.001,2839.9,2838.9,4.7594]
[1766080711855,0.001,2840.2,2839.3,5.1239]
[1766080712153,0.001,2840.2,2839.1,0.46438023]
[1766080712154,0.001,2840.2,2839.4,5.1239]
[1766080712463,0.001,2840.2,2839.5,0.3645]
[1766080712950,0.001,2840.2,2839.6,0.3645]
[1766080714452,4.7892,2840.1,2839.4,0.574]
[1766080714652,4.7892,2840.1,2839.0,3.886794]
[1766080714653,4.7892,2840.0,2839.0,3.886794]
[1766080714827,4.7892,2839.8,2839.0,0.3645]
[1766080715652,4.7892,2839.8,2839.0,3.88685414]
[1766080715853,4.7892,2839.8,2839.0,0.3645]
[1766080716529,4.7892,2839.6,2838.5,0.3645]
[1766080716853,4.7892,2839.6,2838.6,0.3645]
[1766080717828,4.7892,2839.6,2838.7,4.7594]
[1766080718055,0.574,2839.7,2839.0,0.3645]
[1766080718645,0.574,2839.7,2839.1,0.3645]
[1766080718961,5.768704,2839.9,2839.1,0.3645]
[1766080719144,0.5768704,2839.8,2839.1,0.3645]
[1766080719531,4.7892,2839.7,2839.0,0.574]
[1766080720436,0.5768704,2839.8,2839.0,0.574]
[1766080720635,0.5768704,2839.8,2839.1,0.3645]
[1766080720859,4.7892,2840.0,2839.2,0.3645]
[1766080722153,4.7892,2840.0,2839.3,0.3645]
[1766080722366,0.001,2840.1,2839.4,0.3645]
[1766080722528,0.001,2840.8,2839.7,0.344]
[1766080722733,4.3309,2841.1,2840.4,0.344]
[1766080722734,0.001,2841.1,2840.4,0.344]
[1766080723061,0.001,2841.3,2840.9,0.344]
[1766080723560,4.3309,2841.3,2840.5,0.574]
[1766080723762,4.3309,2841.3,2840.6,0.344]
[1766080724161,4.3309,2841.3,2840.7,0.344]
[1766080724541,0.001,2841.3,2840.7,0.344]
[1766080724742,0.001,2841.3,2840.8,0.344]
[1766080724941,0.001,2841.3,2840.6,0.59800802]
[1766080724942,4.3309,2841.3,2840.6,0.59800802]
[1766080725247,4.3309,2841.3,2840.4,1.38238023]
[1766080725448,4.3309,2841.3,2840.5,0.344]
[1766080726271,0.001,2841.3,2840.7,3.52023189]
[1766080726442,4.3299,2841.9,2841.0,4.5977]
[1766080726630,4.3299,2841.9,2840.8,0.574]
[1766080726631,0.001,2842.0,2841.3,0.344]
[1766080726835,0.001,2842.0,2841.5,0.344]
[1766080727361,0.001,2842.5,2841.8,0.344]
[1766080727564,0.001,2842.5,2841.9,0.918]
[1766080727932,0.001,2842.5,2842.0,0.344]
[1766080728140,0.001,2842.9,2842.0,0.344]
[1766080728470,0.001,2842.9,2842.2,0.344]
[1766080729045,0.001,2842.9,2842.3,0.344]
[1766080729248,0.001,2842.9,2842.4,0.344]
[1766080729449,0.001,2842.9,2842.5,0.574]
[1766080729653,0.001,2842.9,2842.4,0.918]
[1766080729850,0.001,2842.9,2842.1,0.80838023]
[1766080730051,4.3309,2842.9,2841.5,0.344]
[1766080730250,4.3309,2842.9,2841.7,0.344]
[1766080730453,4.3309,2842.9,2841.7,0.80838023]
[1766080730855,4.3299,2842.7,2841.7,0.344]
[1766080731371,4.3299,2842.7,2841.8,0.46438023]
[1766080731543,4.3299,2842.5,2841.7,0.344]
[1766080731866,4.3299,2842.5,2841.7,0.80838023]
[1766080732038,4.3299,2842.5,2841.8,0.80838023]
[1766080732865,4.3299,2842.5,2841.8,0.344]
[1766080733070,0.405504,2842.8,2841.9,0.344]
[1766080733370,0.40925716,2842.8,2842.1,0.344]
[1766080733963,0.40925716,2842.8,2842.2,0.344]
[1766080734267,0.001,2842.9,2842.2,0.344]
[1766080734568,0.001,2842.9,2842.3,0.344]
[1766080734779,0.001,2842.9,2841.6,0.344]
[1766080734780,4.3299,2842.6,2841.6,0.344]
[1766080735074,4.3299,2842.4,2841.6,0.917]
[1766080735773,4.3299,2842.4,2842.0,0.002]
[1766080736269,4.3299,2842.4,2841.6,0.917]
[1766080736459,4.3299,2842.4,2841.6,0.573]
[1766080736658,4.3299,2842.4,2841.6,4.09213395]
[1766080736969,4.9029,2842.6,2841.8,0.344]
[1766080737181,4.8607404,2842.6,2841.9,0.344]
[1766080737372,4.9039,2842.9,2842.1,0.344]
[1766080737574,0.001,2842.9,2842.2,0.344]
[1766080737773,0.001,2842.9,2842.3,0.344]
[1766080737962,0.001,2843.1,2842.5,0.344]
[1766080738170,4.3309,2843.1,2842.4,0.573]
[1766080738482,0.001,2843.1,2842.5,0.344]
[1766080739053,0.001,2843.1,2842.6,0.344]
[1766080739683,0.001,2843.6,2842.5,7.03603548]
[1766080739893,0.001,2843.6,2842.7,0.344]
[1766080740096,0.46538023,2843.6,2842.9,0.344]
[1766080740690,8.31196416,2843.6,2842.9,0.344]
[1766080741361,0.001,2843.6,2842.9,0.344]
[1766080741563,4.6133,2843.6,2842.9,0.344]
[1766080741767,3.51767995,2843.6,2842.9,0.344]
[1766080741963,0.001,2843.6,2842.9,0.344]
[1766080742264,4.6133,2843.6,2842.9,0.344]
[1766080742788,0.001,2843.6,2843.1,0.3658]
[1766080742984,4.6123,2844.0,2843.2,0.3658]
[1766080743185,4.6123,2844.0,2843.3,0.3658]
[1766080743499,0.46538023,2844.1,2843.3,0.3658]
[1766080743681,0.001,2843.6,2843.2,0.573]
[1766080744204,4.6133,2843.6,2842.7,0.573]
[1766080744356,4.6123,2843.4,2842.7,0.573]
[1766080744782,4.6123,2843.4,2842.4,0.3678]
[1766080744783,4.6123,2843.4,2842.4,0.002]
[1766080744997,4.6123,2843.4,2842.5,0.46438023]
[1766080745306,4.6123,2843.3,2842.4,0.002]
[1766080745897,4.6123,2843.1,2842.4,0.002]
[1766080746116,0.001,2845.2,2842.8,0.0815545]
[1766080746261,45.83214252,2847.4,2842.5,4.4348]
[1766080746262,0.0815545,2846.4,2846.0,0.3658]
[1766080746456,0.0815545,2846.6,2846.1,0.63283022]
[1766080746457,0.6565545,2846.6,2846.1,0.63283022]
[1766080746702,0.0815545,2845.6,2845.5,2.394382]
[1766080746911,0.0815545,2845.6,2844.3,9.21376888]
[1766080746912,0.0815545,2845.4,2845.3,2.799886]
[1766080747204,0.0815545,2845.4,2843.5,0.575]
[1766080747205,0.0815545,2845.2,2844.7,7.03061834]
[1766080747401,1e-08,2845.1,2844.7,14.98072751]
[1766080747607,0.0815545,2845.6,2845.0,0.57499999]
[1766080747891,4.6123,2846.7,2845.3,4.4348]
[1766080748059,2e-08,2845.7,2845.3,4.4348]
[1766080748266,0.0815545,2846.0,2845.3,4.4348]
[1766080748570,0.575,2846.2,2845.4,0.3658]
[1766080748571,0.0815545,2845.9,2845.4,0.3658]
[1766080748964,0.0815545,2845.9,2845.5,3.51432085]
[1766080749185,0.0815545,2845.9,2845.5,7.0286417]
[1766080749462,0.575,2845.9,2845.6,0.3658]
[1766080749757,0.0815545,2845.8,2845.6,0.3658]
[1766080750602,0.575,2845.9,2845.6,0.3658]
[1766080750767,0.2,2845.9,2845.6,0.3658]
[1766080750964,0.0815545,2845.8,2845.7,3.51407386]
[1766080751498,0.0815545,2845.8,2845.6,3.8799786]
[1766080751860,0.2,2845.9,2845.6,7.39417595]
[1766080752289,0.6565545,2846.1,2845.7,0.3658]
[1766080752461,0.6565545,2846.1,2845.3,7.94935174]
[1766080752462,0.0815545,2845.6,2845.3,3.51448852]
[1766080752792,0.0815545,2845.6,2845.4,3.51433821]
[1766080752989,0.0815545,2845.9,2845.0,3.51485377]
[1766080753182,0.0815545,2845.6,2845.0,10.54473073]
[1766080753371,0.0815545,2845.9,2845.0,10.54473073]
[1766080753568,0.0815545,2845.9,2845.0,3.51485377]
[1766080753569,0.0815545,2845.5,2845.0,3.51485377]
[1766080754362,0.0815545,2845.9,2845.1,4.1796]
[1766080754567,0.0815545,2845.8,2845.3,0.3672]
[1766080754791,0.0815545,2845.7,2845.3,0.3672]
[1766080754992,0.0815545,2845.9,2845.3,0.3672]
[1766080755165,0.0815545,2845.9,2845.5,0.3672]
[1766080755367,0.0825545,2848.3,2846.0,0.0815545]
[1766080755562,0.0815545,2847.9,2847.0,0.3672]
[1766080755868,0.0815545,2847.8,2847.2,0.3672]
[1766080756076,0.0815545,2847.7,2847.2,0.3672]
[1766080756275,0.0815545,2847.6,2847.2,0.3672]
[1766080756701,0.0815545,2847.8,2847.2,0.3672]
[1766080756993,0.0815545,2847.6,2847.2,0.3672]
[1766080757199,0.0815545,2847.4,2846.8,0.3672]
[1766080757526,0.0815545,2847.4,2845.3,0.3672]
[1766080757527,0.0815545,2846.2,2845.3,0.3672]
[1766080757669,0.0815545,2846.4,2845.9,3.51374969]
[1766080758016,0.0815545,2846.2,2845.8,3.88106026]
[1766080758367,0.0815545,2846.2,2845.9,3.51380623]
[1766080758568,0.0815545,2846.4,2846.0,3.51359327]
[1766080758882,0.54593473,2846.9,2846.0,3.51359327]
[1766080759098,0.0815545,2846.4,2846.0,3.51359327]
[1766080759270,0.0815545,2846.4,2845.9,3.88093685]
[1766080759468,0.0815545,2846.4,2845.9,0.3672]
[1766080759698,0.0815545,2846.3,2845.9,0.3672]
[1766080759972,0.0815545,2846.6,2845.9,0.3672]
[1766080760175,0.0815545,2846.4,2845.9,0.3672]
[1766080760567,0.0815545,2846.9,2846.1,0.3672]
[1766080760909,0.0815545,2846.5,2846.1,0.3672]
[1766080761069,0.0815545,2846.9,2846.1,0.3672]